bitfinex/quotes_BTCUSD_20241023
["timestamp","ask_amount","ask_price","bid_price","bid_amount"]
[1729709351698,0.35766365,65827.0,65826.0,0.18042284]
[1729709351931,0.35766365,65827.0,65826.0,0.43092665]
[1729709352147,0.31013847,65827.0,65826.0,0.43092665]
[1729709352616,0.31013847,65827.0,65826.0,0.28042284]
[1729709352829,0.31013847,65827.0,65826.0,0.27542284]
[1729709353286,0.31096247,65827.0,65826.0,0.27542284]
[1729709353751,0.31096247,65827.0,65826.0,0.27942517]
[1729709354899,0.31096247,65827.0,65826.0,0.69436543]
[1729709358215,0.31096247,65827.0,65826.0,0.28442517]
[1729709358434,0.31096247,65827.0,65826.0,0.27942517]
[1729709359107,0.31096247,65827.0,65826.0,0.27542284]
[1729709359332,0.31096247,65827.0,65826.0,0.12350784]
[1729709359826,0.31096247,65827.0,65826.0,0.27542284]
[1729709360040,0.31096247,65827.0,65826.0,0.11400182]
[1729709360751,0.31096247,65827.0,65826.0,0.01400182]
[1729709362521,0.61337928,65827.0,65826.0,0.01400182]
[1729709362761,0.61337928,65827.0,65825.0,0.001718]
[1729709362762,0.174915,65826.0,65825.0,0.001718]
[1729709362968,0.32698131,65826.0,65825.0,0.001718]
[1729709363174,0.63555728,65826.0,65825.0,0.001718]
[1729709363429,0.72065728,65826.0,65825.0,0.001718]
[1729709368664,0.56874228,65826.0,65825.0,0.001718]
[1729709368888,0.72065728,65826.0,65825.0,0.001718]
[1729709369200,0.31013847,65826.0,65825.0,0.001718]
[1729709369416,0.31013847,65826.0,65825.0,0.153635]
[1729709369638,0.31013847,65826.0,65825.0,0.253635]
[1729709369848,0.31013847,65826.0,65825.0,0.25755153]
[1729709370108,0.31013847,65826.0,65825.0,0.253635]
[1729709370544,0.31013847,65826.0,65825.0,0.001718]
[1729709371705,0.31013847,65826.0,65825.0,0.153635]
[1729709372597,0.31013847,65826.0,65825.0,0.16123986]
[1729709373066,0.31013847,65826.0,65825.0,0.001718]
[1729709373067,0.65934228,65826.0,65825.0,0.001718]
[1729709373563,0.50883847,65826.0,65825.0,0.001718]
[1729709373981,0.31013847,65826.0,65825.0,0.001718]
[1729709374190,0.31013847,65826.0,65825.0,0.153635]
[1729709374873,0.31013847,65826.0,65825.0,0.15838802]
[1729709375286,0.31013847,65826.0,65825.0,0.153635]
[1729709375498,0.46064228,65826.0,65825.0,0.001718]
[1729709375726,0.46146628,65826.0,65825.0,0.001718]
[1729709376468,0.92028128,65826.0,65825.0,0.001718]
[1729709376687,1.27521956,65826.0,65825.0,0.001718]
[1729709376923,1.32260063,65826.0,65825.0,0.001718]
[1729709377146,1.31260063,65826.0,65825.0,0.001718]
[1729709377364,1.32260063,65826.0,65825.0,0.001718]
[1729709377590,1.36808508,65826.0,65825.0,0.001718]
[1729709377809,1.37008508,65826.0,65825.0,0.001718]
[1729709378456,1.27286974,65826.0,65825.0,0.001718]
[1729709378958,1.22738529,65826.0,65825.0,0.001718]
[1729709379192,1.36029597,65826.0,65825.0,0.001718]
[1729709379407,1.38285536,65826.0,65825.0,0.001718]
[1729709379894,0.002,65817.0,65806.0,0.001718]
[1729709380126,0.151941,65815.0,65806.0,0.001718]
[1729709380335,0.303891,65813.0,65806.0,0.001718]
[1729709380568,0.48731431,65812.0,65806.0,0.001718]
[1729709380791,0.0015625,65811.0,65806.0,0.001718]
[1729709381001,0.15050381,65810.0,65806.0,0.001718]
[1729709381226,0.25972294,65807.0,65806.0,0.001718]
[1729709381469,0.26128544,65807.0,65806.0,0.001718]
[1729709382990,0.26128544,65807.0,65806.0,0.153679]
[1729709383251,0.0015625,65807.0,65806.0,0.153679]
[1729709383467,0.30995563,65807.0,65806.0,0.153679]
[1729709385435,0.30995563,65807.0,65806.0,0.001718]
[1729709386613,0.30995563,65807.0,65806.0,0.153679]
[1729709387778,0.30995563,65807.0,65806.0,0.001718]
[1729709388222,0.30995563,65807.0,65806.0,0.153679]
[1729709389997,0.30995563,65807.0,65806.0,0.001718]
[1729709390209,0.30995563,65807.0,65806.0,0.153679]
[1729709395166,0.30995563,65807.0,65806.0,0.234879]
[1729709400395,0.30995563,65807.0,65806.0,0.334879]
[1729709401069,0.30995563,65807.0,65806.0,0.339879]
[1729709401522,0.30995563,65807.0,65806.0,0.49038281]
[1729709401756,0.30995563,65807.0,65806.0,0.52076281]
[1729709401970,0.30995563,65807.0,65806.0,0.53576281]
[1729709402445,0.30995563,65807.0,65806.0,0.54812087]
[1729709402884,0.30995563,65807.0,65806.0,0.54312087]
[1729709403113,0.30995563,65807.0,65806.0,0.73262087]
[1729709403325,0.30995563,65807.0,65806.0,0.72762087]
[1729709403792,0.30995563,65807.0,65806.0,0.73762087]
[1729709404020,0.30995563,65807.0,65806.0,0.73762032]
[1729709404922,0.30995563,65807.0,65806.0,0.73958332]
[1729709405160,0.29558739,65807.0,65806.0,0.73762032]
[1729709405445,0.07900739,65807.0,65806.0,0.73958332]
[1729709405678,0.22877188,65820.0,65819.0,0.332831]
[1729709405921,0.22877188,65820.0,65819.0,0.84313404]
[1729709406137,0.000824,65825.0,65819.0,0.84313404]
[1729709406138,0.000824,65825.0,65824.0,0.15192]
[1729709406368,0.000824,65825.0,65824.0,0.69597987]
[1729709406601,0.456584,65825.0,65824.0,0.68820321]
[1729709407106,0.456584,65825.0,65824.0,0.71858321]
[1729709407348,0.3938724,65825.0,65824.0,1.42319821]
[1729709407570,0.22877188,65856.0,65833.0,0.344599]
[1729709407787,0.22877188,65856.0,65833.0,0.4998557]
[1729709408020,0.22877188,65856.0,65833.0,0.66737887]
[1729709408254,0.000823,65834.0,65833.0,0.67237887]
[1729709408483,0.000823,65834.0,65833.0,0.66762598]
[1729709409873,0.000823,65834.0,65833.0,0.66262598]
[1729709410567,0.000823,65834.0,65833.0,0.67151309]
[1729709411032,0.000823,65834.0,65833.0,0.66651309]
[1729709411779,0.22877188,65856.0,65848.0,0.151864]
[1729709412017,0.22877188,65856.0,65848.0,0.256864]
[1729709412281,0.68436188,65849.0,65848.0,0.43438717]
[1729709412508,0.45559,65849.0,65848.0,0.43438717]
[1729709413230,0.45559,65849.0,65848.0,0.42938717]
[1729709413703,0.45559,65849.0,65848.0,0.43329217]
[1729709414672,0.45559,65849.0,65848.0,0.58379598]
[1729709414920,0.45559,65849.0,65848.0,0.43829217]
[1729709416535,0.45559,65849.0,65848.0,0.43438717]
[1729709416762,0.45559,65849.0,65848.0,0.42938717]
[1729709417036,0.45559,65849.0,65848.0,0.151864]
[1729709417464,0.45559,65849.0,65844.0,0.17752317]
[1729709417674,0.0015625,65848.0,65845.0,0.303743]
[1729709417923,0.0015625,65848.0,65847.0,0.151867]
[1729709417924,0.23033438,65848.0,65847.0,0.151867]
[1729709418146,0.23033438,65848.0,65833.0,0.005]
[1729709418147,0.303723,65847.0,65833.0,0.005]
[1729709418393,0.303723,65847.0,65835.0,0.303789]
[1729709418394,0.0775,65845.0,65835.0,0.303789]
[1729709418640,0.0775,65845.0,65828.0,0.17752317]
[1729709418641,0.15206631,65844.0,65828.0,0.17752317]
[1729709418874,0.15206631,65844.0,65833.0,0.303799]
[1729709418875,0.15188,65842.0,65833.0,0.303799]
[1729709419107,0.0015625,65841.0,65828.0,0.17752317]
[1729709419343,0.4571675,65841.0,65834.0,0.151896]
[1729709419573,0.0015625,65840.0,65836.0,0.151891]
[1729709419804,0.0015625,65840.0,65835.0,0.151894]
[1729709420003,0.303723,65839.0,65835.0,0.151894]
[1729709420275,0.0015625,65838.0,65835.0,0.151894]
[1729709420735,0.303723,65837.0,65836.0,0.151892]
[1729709420955,0.303723,65837.0,65834.0,0.303792]
[1729709420956,0.303723,65837.0,65835.0,0.151894]
[1729709421190,0.0015625,65836.0,65835.0,0.151894]
[1729709421648,0.3052855,65836.0,65835.0,0.151894]
[1729709421881,0.3052855,65836.0,65832.0,0.17752317]
[1729709422094,0.3052855,65836.0,65831.0,0.303808]
[1729709422329,0.3052855,65836.0,65834.0,0.151897]
[1729709422546,0.3052855,65836.0,65831.0,0.303808]
[1729709422547,0.3052855,65836.0,65832.0,0.1519]
[1729709422767,0.3052855,65836.0,65833.0,0.151898]
[1729709422976,0.3052855,65836.0,65834.0,0.151897]
[1729709423217,0.3052855,65836.0,65831.0,0.153546]
[1729709423443,0.3052855,65836.0,65831.0,0.001644]
[1729709423673,0.1804,65835.0,65831.0,0.153546]
[1729709423883,0.0015625,65834.0,65831.0,0.153546]
[1729709424104,0.3052855,65834.0,65831.0,0.153546]
[1729709424337,0.3052855,65834.0,65831.0,0.001644]
[1729709424631,0.161901,65832.0,65831.0,0.001644]
[1729709424876,0.53526731,65832.0,65831.0,0.001644]
[1729709425099,0.91562781,65832.0,65831.0,0.001644]
[1729709425760,0.91762781,65832.0,65831.0,0.001644]
[1729709425978,0.91562781,65832.0,65831.0,0.001644]
[1729709426683,0.91762781,65832.0,65831.0,0.001644]
[1729709427118,0.91562781,65832.0,65831.0,0.001644]
[1729709427631,0.91562781,65832.0,65831.0,0.41227117]
[1729709427632,0.303723,65832.0,65831.0,0.41227117]
[1729709427834,0.303723,65832.0,65831.0,0.41727117]
[1729709428795,0.303723,65832.0,65831.0,0.23873194]
[1729709429018,0.303723,65832.0,65831.0,0.153548]
[1729709429960,0.303723,65832.0,65831.0,0.33107117]
[1729709431330,0.303723,65832.0,65831.0,0.43607117]
[1729709431568,0.31124536,65832.0,65831.0,0.43607117]
[1729709431801,0.303723,65832.0,65831.0,0.44082272]
[1729709432039,0.31124536,65832.0,65831.0,0.44082272]
[1729709433227,0.31124536,65832.0,65831.0,0.43607117]
[1729709433454,0.31124536,65832.0,65831.0,0.44082259]
[1729709435116,0.22877188,65855.0,65848.0,0.151864]
[1729709435350,0.0015625,65854.0,65848.0,0.151864]
[1729709435573,0.01262674,65849.0,65848.0,0.151864]
[1729709435795,0.000822,65849.0,65848.0,0.151864]
[1729709436015,0.01262674,65849.0,65848.0,0.151864]
[1729709436237,0.000822,65849.0,65848.0,0.151864]
[1729709436451,0.456412,65849.0,65848.0,0.151864]
[1729709436671,0.46826752,65849.0,65848.0,0.151864]
[1729709437555,0.46826752,65849.0,65846.0,0.151867]
[1729709437795,0.46826752,65849.0,65837.0,0.005]
[1729709437796,0.0015625,65848.0,65837.0,0.005]
[1729709438017,0.25672317,65843.0,65831.0,0.001644]
[1729709438256,0.25672317,65843.0,65831.0,0.153547]
[1729709438257,0.17752317,65838.0,65831.0,0.153547]
[1729709438487,0.17752317,65838.0,65836.0,0.151892]
[1729709438488,0.15206631,65837.0,65836.0,0.151892]
[1729709438722,0.60765631,65837.0,65836.0,0.151892]
[1729709438958,0.61790397,65837.0,65836.0,0.151892]
[1729709439191,0.46740016,65837.0,65836.0,0.38099581]
[1729709439402,0.43702216,65837.0,65836.0,1.29563554]
[1729709439621,0.43702216,65837.0,65836.0,1.86327229]
[1729709439622,0.38469609,65837.0,65836.0,1.86327229]
[1729709439847,0.28812979,65837.0,65836.0,1.17481337]
[1729709440067,0.28812979,65837.0,65836.0,1.00334945]
[1729709440494,0.28812979,65837.0,65836.0,1.03372945]
[1729709441607,0.25775179,65837.0,65836.0,1.03372945]
[1729709442325,0.10586179,65837.0,65836.0,1.037716]
[1729709442536,0.10586179,65837.0,65836.0,1.11943224]
[1729709442983,0.10586179,65837.0,65836.0,0.86019283]
[1729709443216,0.10586179,65837.0,65836.0,0.85259175]
[1729709443672,0.07548379,65837.0,65836.0,0.85259082]
[1729709444382,0.07548379,65837.0,65836.0,0.81320082]
[1729709444611,0.07548379,65837.0,65836.0,0.70173182]
[1729709444822,0.07548379,65837.0,65836.0,0.67135182]
[1729709445105,0.07548379,65837.0,65836.0,0.67044682]
[1729709446000,0.07548379,65837.0,65836.0,0.26562901]
[1729709446235,0.07548379,65837.0,65836.0,0.26587855]
[1729709446701,0.07548379,65837.0,65836.0,0.26087855]
[1729709446930,0.07548379,65837.0,65836.0,0.26587855]
[1729709448076,0.07548379,65837.0,65836.0,0.41638236]
[1729709448341,0.07548379,65837.0,65836.0,1.02931649]
[1729709448571,0.04510579,65837.0,65836.0,1.14526749]
[1729709448805,0.04510579,65837.0,65836.0,1.15286837]
[1729709448806,7.9e-07,65837.0,65836.0,1.15286837]
[1729709449041,7.9e-07,65837.0,65836.0,0.75452629]
[1729709449277,7.9e-07,65837.0,65836.0,0.74413728]
[1729709449497,7.9e-07,65837.0,65836.0,0.77188778]
[1729709450168,7.9e-07,65837.0,65836.0,0.8165352]
[1729709450390,7.9e-07,65837.0,65836.0,0.81457279]
[1729709450836,7.9e-07,65837.0,65836.0,0.76992478]
[1729709451060,7.9e-07,65837.0,65836.0,0.81457279]
[1729709451279,7.9e-07,65837.0,65836.0,0.76578087]
[1729709451500,7.9e-07,65837.0,65836.0,0.72113286]
[1729709451946,7.9e-07,65837.0,65836.0,0.49633286]
[1729709452180,7.9e-07,65837.0,65836.0,0.31613286]
[1729709452415,7.9e-07,65837.0,65836.0,0.31138236]
[1729709452662,7.9e-07,65837.0,65836.0,0.34176236]
[1729709453347,7.9e-07,65837.0,65836.0,0.44176236]
[1729709456517,7.9e-07,65837.0,65836.0,0.44651352]
[1729709456733,7.9e-07,65837.0,65836.0,0.70575293]
[1729709456957,7.9e-07,65837.0,65836.0,0.70100177]
[1729709457173,7.9e-07,65837.0,65836.0,0.70575293]
[1729709457622,7.9e-07,65837.0,65836.0,0.97155293]
[1729709457855,0.000822,65847.0,65836.0,0.97155293]
[1729709457856,0.000822,65847.0,65846.0,0.287249]
[1729709458070,0.000822,65847.0,65846.0,1.12178197]
[1729709458292,0.000822,65847.0,65846.0,1.12938331]
[1729709458553,0.000822,65847.0,65846.0,1.11703081]
[1729709458775,0.000822,65847.0,65846.0,1.12938086]
[1729709459006,0.000822,65847.0,65846.0,1.38862027]
[1729709459228,0.000822,65847.0,65846.0,1.31990027]
[1729709459665,0.000822,65847.0,65846.0,1.30570027]
[1729709460614,0.000822,65847.0,65846.0,1.30963083]
[1729709461375,0.22877188,65865.0,65864.0,0.256828]
[1729709461622,0.22877188,65865.0,65864.0,0.93426581]
[1729709461842,0.00086,65891.0,65890.0,0.151768]
[1729709462118,0.00086,65891.0,65890.0,0.156768]
[1729709462842,0.00086,65891.0,65890.0,0.256768]
[1729709464570,0.00086,65891.0,65890.0,0.251768]
[1729709464834,0.00086,65891.0,65890.0,0.256768]
[1729709465979,1e-06,65893.0,65892.0,0.171763]
[1729709466191,1e-06,65893.0,65892.0,1.25638351]
[1729709466416,1e-06,65893.0,65892.0,1.25334881]
[1729709466857,1e-06,65893.0,65892.0,1.25531181]
[1729709467099,1e-06,65893.0,65892.0,1.30582273]
[1729709467335,1e-06,65893.0,65892.0,1.25809536]
[1729709467572,1e-06,65893.0,65892.0,1.20639736]
[1729709467814,1e-06,65893.0,65892.0,0.58210281]
[1729709468044,1e-06,65893.0,65892.0,0.58184958]
[1729709468265,1e-06,65893.0,65892.0,0.57710281]
[1729709468503,1e-06,65893.0,65892.0,0.42112868]
[1729709468735,1e-06,65893.0,65892.0,0.41612868]
[1729709469909,1e-06,65893.0,65892.0,0.41112868]
[1729709470133,1e-06,65893.0,65892.0,0.256763]
[1729709471270,0.0015625,65908.0,65892.0,0.256763]
[1729709471271,1e-06,65900.0,65899.0,0.015]
[1729709471499,1e-06,65900.0,65899.0,0.68452468]
[1729709471738,1e-06,65900.0,65899.0,0.68149022]
[1729709472909,1e-06,65900.0,65899.0,0.68533973]
[1729709475213,1e-06,65900.0,65899.0,0.68730273]
[1729709475438,1e-06,65900.0,65899.0,0.68533973]
[1729709476186,1e-06,65900.0,65899.0,0.68730273]
[1729709476399,0.00086,65913.0,65912.0,0.256717]
[1729709477333,0.00086,65913.0,65912.0,0.51595641]
[1729709477587,0.00086,65913.0,65912.0,0.66646022]
[1729709478948,0.00086,65913.0,65912.0,0.40722081]
[1729709479491,0.000823,65931.0,65930.0,0.005]
[1729709479737,0.000823,65931.0,65930.0,0.256676]
[1729709483511,0.000823,65931.0,65930.0,0.251676]
[1729709483747,0.000823,65931.0,65930.0,0.456303]
[1729709483978,0.000823,65931.0,65930.0,0.40717981]
[1729709486032,0.000823,65931.0,65930.0,0.41101481]
[1729709486502,0.000823,65931.0,65930.0,0.256676]
[1729709491204,0.033123,65933.0,65932.0,0.151671]
[1729709495746,0.26016191,65934.0,65933.0,0.151669]
[1729709497105,0.0009225,65934.0,65933.0,0.151669]
[1729709497339,0.00082,65941.0,65940.0,0.151653]
[1729709497560,0.00082,65941.0,65940.0,0.156653]
[1729709498032,0.00082,65941.0,65940.0,0.256653]
[1729709502297,0.26005941,65941.0,65940.0,0.1]
[1729709502513,0.26005941,65941.0,65938.0,0.151655]
[1729709502514,0.26005941,65941.0,65938.0,0.251657]
[1729709502732,0.002,65936.0,65927.0,0.005]
[1729709502969,0.15142631,65940.0,65932.0,0.38044288]
[1729709502970,0.0009225,65935.0,65932.0,0.38044288]
[1729709503227,0.0009225,65935.0,65929.0,0.303356]
[1729709503444,0.0009225,65935.0,65930.0,0.151676]
[1729709503872,0.0009225,65935.0,65924.0,0.005]
[1729709504102,0.25923941,65931.0,65927.0,0.455047]
[1729709504349,0.0009225,65930.0,65929.0,0.251676]
[1729709505021,0.0009225,65930.0,65907.0,0.04441783]
[1729709505022,0.303357,65929.0,65917.0,0.303411]
[1729709505229,0.15142631,65928.0,65924.0,0.22877188]
[1729709505451,0.15142631,65928.0,65920.0,0.303396]
[1729709505452,0.60650631,65928.0,65920.0,0.303396]
[1729709505673,0.0009225,65927.0,65917.0,0.30341]
[1729709505893,0.15050381,65926.0,65919.0,0.38047188]
[1729709506106,0.25923941,65921.0,65920.0,0.151698]
[1729709506546,0.71431941,65921.0,65920.0,0.151698]
[1729709506993,0.71431941,65921.0,65920.0,0.251698]
[1729709507932,0.71431941,65921.0,65917.0,0.1]
[1729709508169,0.0009225,65920.0,65917.0,0.1]
[1729709508387,0.0009225,65920.0,65918.0,0.1]
[1729709508614,0.45508,65919.0,65918.0,0.1]
[1729709509094,0.65288,65919.0,65918.0,0.1]
[1729709509330,0.65288,65919.0,65913.0,0.00400301]
[1729709509559,0.0009225,65918.0,65913.0,0.00400301]
[1729709509779,0.0009225,65918.0,65913.0,0.151714]
[1729709510022,0.45508,65917.0,65914.0,0.1]
[1729709510286,0.0009225,65916.0,65914.0,0.1]
[1729709510524,0.15142631,65916.0,65910.0,0.151722]
[1729709510755,0.45508,65915.0,65911.0,0.1]
[1729709510974,0.0009225,65914.0,65912.0,0.151716]
[1729709511186,0.0009225,65914.0,65911.0,0.1]
[1729709511187,0.0009225,65914.0,65913.0,0.15138389]
[1729709511405,0.30369611,65913.0,65911.0,0.1]
[1729709511622,0.30369611,65913.0,65912.0,0.251717]
[1729709512765,0.30369611,65913.0,65912.0,0.256717]
[1729709514789,0.30461861,65913.0,65912.0,0.256717]
[1729709515938,0.30461861,65913.0,65912.0,0.251717]
[1729709516464,0.30461861,65913.0,65912.0,0.1]
[1729709516689,0.30461861,65913.0,65912.0,0.251717]
[1729709516908,0.30369611,65913.0,65912.0,0.251717]
[1729709517373,0.30461861,65913.0,65912.0,0.251717]
[1729709517604,0.30369611,65913.0,65912.0,0.251717]
[1729709518300,0.30461861,65913.0,65912.0,0.251717]
[1729709518535,0.30369611,65913.0,65912.0,0.251717]
[1729709519211,0.30461861,65913.0,65912.0,0.251717]
[1729709520376,0.48164747,65913.0,65912.0,0.251717]
[1729709520611,0.48072497,65913.0,65912.0,0.251717]
[1729709521573,0.48072497,65913.0,65912.0,0.253359]
[1729709521794,0.48072497,65913.0,65912.0,0.258359]
[1729709524638,0.47870497,65913.0,65912.0,0.258359]
[1729709525332,0.30167611,65913.0,65912.0,0.333859]
[1729709526035,0.30167611,65913.0,65912.0,0.48436281]
[1729709527868,0.27133311,65913.0,65912.0,0.48936281]
[1729709528084,0.27133311,65913.0,65912.0,0.49936281]
[1729709528313,0.27133311,65913.0,65912.0,0.48936281]
[1729709528545,0.14996111,65913.0,65912.0,0.69076281]
[1729709528770,1.1e-07,65913.0,65912.0,0.69076281]
[1729709529217,1.1e-07,65913.0,65912.0,0.69272581]
[1729709529449,1.1e-07,65913.0,65912.0,0.69076281]
[1729709530555,1.1e-07,65913.0,65912.0,0.86779167]
[1729709531975,1.1e-07,65913.0,65912.0,0.69076281]
[1729709532426,1.1e-07,65913.0,65912.0,0.68576281]
[1729709532885,1.1e-07,65913.0,65912.0,0.333859]
[1729709535663,1.1e-07,65913.0,65912.0,0.258359]
[1729709537078,1.1e-07,65913.0,65912.0,0.43538786]
[1729709537551,1.1e-07,65913.0,65912.0,0.46576786]
[1729709537778,1.1e-07,65913.0,65912.0,0.43538786]
[1729709540761,1.1e-07,65913.0,65912.0,0.253359]
[1729709543299,0.00092261,65913.0,65912.0,0.253359]
[1729709544191,1.1e-07,65913.0,65912.0,0.253359]
[1729709544684,1.1e-07,65913.0,65912.0,0.43538786]
[1729709545628,0.00082211,65913.0,65912.0,0.58589167]
[1729709546102,0.00082211,65913.0,65912.0,0.59063749]
[1729709547356,0.00082211,65913.0,65912.0,0.5945731]
[1729709547602,0.00082211,65913.0,65912.0,0.6249531]
[1729709547837,0.000821,65931.0,65912.0,0.6249531]
[1729709547838,0.000821,65931.0,65930.0,0.256676]
[1729709548080,0.000821,65931.0,65930.0,0.43370486]
[1729709548800,0.000821,65931.0,65930.0,0.43844926]
[1729709549269,0.000821,65931.0,65930.0,0.43370486]
[1729709550208,0.000821,65931.0,65930.0,0.256676]
[1729709551179,0.000821,65931.0,65930.0,0.26058031]
[1729709551660,0.000821,65931.0,65930.0,0.41911719]
[1729709551896,0.000821,65931.0,65930.0,0.41608412]
[1729709552156,0.000821,65931.0,65930.0,0.26058031]
[1729709552628,0.000821,65931.0,65930.0,0.41108412]
[1729709555518,0.000821,65931.0,65930.0,0.26058031]
[1729709559694,0.000821,65931.0,65930.0,0.58811298]
[1729709564558,0.000821,65931.0,65930.0,0.26058031]
[1729709573739,0.000821,65931.0,65930.0,0.26532475]
[1729709577397,0.000821,65931.0,65930.0,0.29570475]
[1729709577628,0.000821,65931.0,65930.0,0.26532475]
[1729709578577,0.000821,65931.0,65930.0,0.41886192]
[1729709578780,0.000821,65931.0,65930.0,0.41582856]
[1729709581257,0.000821,65931.0,65930.0,0.41582853]
[1729709581489,0.000821,65931.0,65930.0,0.41582855]
[1729709583364,0.000821,65931.0,65930.0,0.42341989]
[1729709584815,0.000821,65931.0,65930.0,0.27291608]
[1729709586132,0.000821,65931.0,65930.0,0.26532474]
[1729709590770,0.000821,65931.0,65930.0,0.50316181]
[1729709591028,0.000821,65931.0,65930.0,0.59768863]
[1729709591235,0.000821,65931.0,65930.0,0.76348432]
[1729709591486,0.000821,65931.0,65930.0,0.69630424]
[1729709591723,0.000821,65931.0,65930.0,0.69630404]
[1729709592179,0.000821,65931.0,65930.0,0.69130404]
[1729709592390,0.000821,65931.0,65930.0,0.78087748]
[1729709592608,0.000821,65931.0,65930.0,0.75082712]
[1729709592827,0.000821,65931.0,65930.0,0.72836743]
[1729709593049,0.000821,65931.0,65930.0,0.64906743]
[1729709593255,0.000821,65931.0,65930.0,0.483223]
[1729709593533,0.000821,65931.0,65930.0,0.41582835]
[1729709593755,0.000821,65931.0,65930.0,0.58171109]
[1729709593964,0.000821,65931.0,65930.0,0.58171136]
[1729709594195,0.000821,65931.0,65930.0,0.64910683]
[1729709594403,0.000821,65931.0,65930.0,0.43120003]
[1729709594629,0.000821,65931.0,65930.0,0.26532481]
[1729709594860,0.000821,65931.0,65930.0,0.49853302]
[1729709595090,0.000821,65931.0,65930.0,0.33270602]
[1729709595332,0.000821,65931.0,65930.0,0.26532482]
[1729709595540,0.000821,65931.0,65930.0,0.33270603]
[1729709596190,0.000821,65931.0,65930.0,0.26532482]
[1729709596630,0.000821,65931.0,65930.0,0.33270603]
[1729709596842,0.000821,65931.0,65930.0,0.26532482]
[1729709597530,0.0649384,65937.0,65936.0,0.251662]
[1729709598689,0.00082,65941.0,65940.0,0.151653]
[1729709598917,0.00082,65941.0,65940.0,0.251653]
[1729709605845,0.4567025,65941.0,65940.0,0.251653]
[1729709606078,0.45578,65941.0,65940.0,0.151653]
[1729709606778,0.01,65937.0,65930.0,0.001646]
[1729709607031,0.17902886,65931.0,65930.0,0.001646]
[1729709607261,1.22318817,65931.0,65930.0,0.001646]
[1729709607478,1.07059267,65931.0,65930.0,0.001646]
[1729709607943,1.22109648,65931.0,65930.0,0.001646]
[1729709608639,1.07059267,65931.0,65930.0,0.001646]
[1729709608907,1.06859267,65931.0,65930.0,0.001646]
[1729709609391,1.06859267,65931.0,65930.0,0.153322]
[1729709609392,0.89156381,65931.0,65930.0,0.153322]
[1729709609629,0.88656381,65931.0,65930.0,0.153322]
[1729709610785,0.89156381,65931.0,65930.0,0.153322]
[1729709612383,0.88656381,65931.0,65930.0,0.153322]
[1729709612615,0.73606,65931.0,65930.0,0.153322]
[1729709613322,0.65436,65931.0,65930.0,0.153322]
[1729709614476,0.65436,65931.0,65930.0,0.148322]
[1729709615884,0.45496,65931.0,65930.0,0.148322]
[1729709616109,0.45996,65931.0,65930.0,0.148322]
[1729709617756,0.45996,65931.0,65930.0,0.149968]
[1729709617971,0.509779,65931.0,65930.0,0.149968]
[1729709618207,0.66528281,65931.0,65930.0,0.149968]
[1729709618430,0.66728281,65931.0,65930.0,0.149968]
[1729709618670,0.93878281,65931.0,65930.0,0.149968]
[1729709618902,0.88978681,65931.0,65930.0,0.001646]
[1729709619155,0.023,65925.0,65921.0,0.30339]
[1729709619367,0.033,65925.0,65924.0,0.151689]
[1729709619597,0.002,65923.0,65920.0,0.303398]
[1729709619815,0.08698889,65923.0,65921.0,0.151696]
[1729709620058,0.61046381,65922.0,65921.0,0.151696]
[1729709620506,0.61246381,65922.0,65921.0,0.151696]
[1729709621822,0.61046381,65922.0,65921.0,0.151696]
[1729709622267,0.61546381,65922.0,65921.0,0.151696]
[1729709622515,0.70629908,65922.0,65921.0,0.151696]
[1729709622732,0.70829908,65922.0,65921.0,0.151696]
[1729709623194,0.61746381,65922.0,65921.0,0.151696]
[1729709624563,0.61546381,65922.0,65921.0,0.151696]
[1729709624777,0.61546381,65922.0,65921.0,0.151296]
[1729709625203,0.61746381,65922.0,65921.0,0.151296]
[1729709626111,0.61746381,65922.0,65912.0,0.001642]
[1729709626112,0.002,65916.0,65912.0,0.001642]
[1729709626340,0.01,65917.0,65912.0,0.001642]
[1729709626341,0.373712,65914.0,65912.0,0.001642]
[1729709626567,0.60441581,65914.0,65912.0,0.001642]
[1729709626805,1.05937581,65914.0,65912.0,0.001642]
[1729709627034,1.20987962,65914.0,65912.0,0.001642]
[1729709627476,1.38690848,65914.0,65912.0,0.001642]
[1729709628426,1.43417522,65914.0,65912.0,0.001642]
[1729709629588,0.2173,65900.0,65899.0,0.001644]
[1729709629808,0.36872631,65900.0,65899.0,0.153391]
[1729709630030,0.82476381,65900.0,65899.0,0.001644]
[1729709630267,0.82276381,65900.0,65899.0,0.001644]
[1729709630490,0.82476381,65900.0,65899.0,0.153391]
[1729709630714,0.82276381,65900.0,65899.0,0.153391]
[1729709633211,0.79976381,65900.0,65899.0,0.153391]
[1729709633428,0.61546381,65900.0,65899.0,0.153391]
[1729709634100,0.61046381,65900.0,65899.0,0.153391]
[1729709634563,0.61546381,65900.0,65899.0,0.153391]
[1729709636191,0.63846381,65900.0,65899.0,0.001644]
[1729709636421,0.63846381,65900.0,65899.0,0.153391]
[1729709638972,0.61046381,65900.0,65899.0,0.153391]
[1729709639434,0.61546381,65900.0,65899.0,0.153391]
[1729709639686,0.70075512,65900.0,65899.0,0.153391]
[1729709641053,0.63920874,65900.0,65899.0,0.153391]
[1729709643104,0.61546381,65900.0,65899.0,0.153391]
[1729709644978,0.61046381,65900.0,65899.0,0.153391]
[1729709645885,0.61546381,65900.0,65899.0,0.153391]
[1729709647709,0.61046381,65900.0,65899.0,0.154391]
[1729709648625,0.61546381,65900.0,65899.0,0.154391]
[1729709649160,0.45496,65900.0,65899.0,0.328891]
[1729709649394,0.45496,65900.0,65899.0,0.333891]
[1729709649646,0.45496,65900.0,65899.0,0.51191986]
[1729709650375,0.45496,65900.0,65899.0,0.50580631]
[1729709650606,0.45496,65900.0,65899.0,0.32777745]
[1729709650829,0.45496,65900.0,65899.0,0.32877745]
[1729709651280,0.45496,65900.0,65899.0,0.32277745]
[1729709651507,0.500456,65900.0,65899.0,0.24827745]
[1729709651742,0.45496,65900.0,65899.0,0.144391]
[1729709651970,0.60546381,65900.0,65899.0,0.144391]
[1729709652202,0.60546381,65900.0,65899.0,0.143391]
[1729709652711,0.60546381,65900.0,65899.0,0.144391]
[1729709652951,0.81549267,65900.0,65899.0,0.146037]
[1729709653417,0.63846381,65900.0,65899.0,0.146037]
[1729709653869,0.64046381,65900.0,65899.0,0.145037]
[1729709654110,0.74398308,65900.0,65899.0,0.146037]
[1729709654336,0.64046381,65900.0,65899.0,0.145037]